fUST/lending_fUST_20250824
["ID","MTS","AMOUNT","RATE_DAILY","PERIOD"]
[381097984,1756037444480,-480.0,0.00052054,120]
[381097985,1756037444489,-480.0,0.00052054,120]
[381097986,1756037444499,-151.0,0.00052054,120]
[381097987,1756037444509,-151.0,0.00052054,120]
[381097988,1756037444518,-151.0,0.00052054,120]
[381097989,1756037444528,-151.0,0.00052054,120]
[381097990,1756037444537,-151.0,0.00052054,120]
[381097991,1756037444546,-151.0,0.00052054,120]
[381097992,1756037444555,-151.0,0.00052054,120]
[381097993,1756037444564,-151.0,0.00052054,120]
[381097994,1756037444574,-151.0,0.00052054,120]
[381097995,1756037444584,-151.0,0.00052054,120]
[381097996,1756037444593,-873.06,0.00052054,120]
[381097997,1756037444603,-575.38,0.00052054,120]
[381097998,1756037444612,-151.0,0.00052054,120]
[381097999,1756037444622,-261.632486,0.00052054,120]
[381098000,1756037444632,-480.0,0.00052054,120]
[381098001,1756037444642,-2925.71,0.00052054,120]
[381098002,1756037444652,-480.0,0.00052054,120]
[381098003,1756037444661,-480.0,0.00052054,120]
[381098004,1756037444671,-408.66248794,0.00052054,120]
[381098005,1756037444680,-480.98094137,0.00052054,120]
[381098006,1756037444690,-480.0,0.00052054,120]
[381098007,1756037444699,-151.0,0.00052054,120]
[381098008,1756037444709,-151.0,0.00052054,120]
[381098009,1756037444718,-1290.4,0.00052054,120]
[381098010,1756037444728,-151.0,0.00052054,120]
[381098011,1756037444737,-599.38,0.00052054,120]
[381098012,1756037444747,-480.0,0.00052054,120]
[381098013,1756037444757,-677.06,0.00052054,120]
[381098014,1756037444766,-988.5,0.00052054,120]
[381098015,1756037444776,-480.0,0.00052054,120]
[381098016,1756037444785,-820.22,0.00052054,120]
[381098017,1756037444796,-480.0,0.00052054,120]
[381098018,1756037444805,-480.0,0.00052054,120]
[381098019,1756037444815,-480.0,0.00052054,120]
[381098020,1756037444824,-642.51,0.00052054,120]
[381098021,1756037444834,-480.0,0.00052054,120]
[381098022,1756037444844,-480.0,0.00052054,120]
[381098023,1756037444853,-480.0,0.00052054,120]
[381098024,1756037444863,-958.02,0.00052054,120]
[381098025,1756037444873,-505.70402225,0.00052054,120]
[381098026,1756037444883,-480.0,0.00052054,120]
[381098027,1756037444893,-1022.37,0.00052054,120]
[381098028,1756037444902,-480.0,0.00052054,120]
[381098029,1756037444911,-461.40067309,0.00052054,120]
[381098030,1756037444921,-906.28,0.00052054,120]
[381098031,1756037444931,-480.0,0.00052054,120]
[381098032,1756037444940,-1452.27,0.00052054,120]
[381098033,1756037444950,-480.0,0.00052054,120]
[381098034,1756037444959,-480.0,0.00052054,120]
[381098035,1756037444969,-480.0,0.00052054,120]
[381098036,1756037444978,-480.0,0.00052054,120]
[381098037,1756037444988,-950.43,0.00052054,120]
[381098038,1756037444997,-480.0,0.00052054,120]
[381098039,1756037445007,-480.0,0.00052054,120]
[381098040,1756037445017,-1656.15,0.00052054,120]
[381098041,1756037445027,-520.73,0.00052054,120]
[381098042,1756037445036,-151.0,0.00052054,120]
[381098043,1756037445047,-151.0,0.00052054,120]
[381098044,1756037445058,-480.0,0.00052054,120]
[381098045,1756037445068,-480.0,0.00052054,120]
[381098046,1756037445079,-151.0,0.00052054,120]
[381098047,1756037445088,-480.0,0.00052054,120]
[381098048,1756037445098,-151.0,0.00052054,120]
[381098049,1756037445107,-480.0,0.00052054,120]
[381098050,1756037445117,-326.0,0.00052054,30]
[381098051,1756037445128,-648.0,0.00052054,120]
[381098052,1756037445138,-324.0,0.00052054,30]
[381098053,1756037445147,-151.0,0.00052054,120]
[381098054,1756037445157,-151.0,0.00052054,120]
[381098055,1756037445166,-151.0,0.00052054,120]
[381098056,1756037445176,-480.0,0.00052054,120]
[381098057,1756037445185,-151.0,0.00052054,120]
[381098058,1756037445194,-510.66,0.00052054,120]
[381098059,1756037445203,-151.0,0.00052054,120]
[381098060,1756037445213,-151.0,0.00052054,120]
[381098061,1756037445223,-151.0,0.00052054,120]
[381098062,1756037445234,-151.0,0.00052054,120]
[381098063,1756037445244,-2373.41,0.00052054,120]
[381098064,1756037445253,-169.161124,0.00052054,120]
[381098065,1756037445263,-1557.86,0.00052054,120]
[381098066,1756037445272,-1170.59,0.00052054,120]
[381098067,1756037445283,-1497.51,0.00052054,120]
[381098068,1756037445294,-753.7,0.00052054,120]
[381098069,1756037445304,-480.0,0.00052054,120]
[381098070,1756037445314,-480.0,0.00052054,120]
[381098071,1756037445323,-1540.03,0.00052054,120]
[381098072,1756037445332,-4387.58,0.00052054,120]
[381098073,1756037445342,-480.0,0.00052054,120]
[381098074,1756037445351,-480.0,0.00052054,2]
[381098075,1756037445360,-480.0,0.00052054,120]
[381098076,1756037445370,-480.0,0.00052054,120]
[381098077,1756037445379,-3406.7,0.00052054,120]
[381098078,1756037445388,-1411.08,0.00052054,120]
[381098079,1756037445398,-2084.33,0.00052054,120]
[381098080,1756037445407,-480.0,0.00052054,120]
[381098081,1756037445417,-480.0,0.00052054,120]
[381098082,1756037445426,-547.23,0.00052054,120]
[381098083,1756037445435,-367.74357245,0.00052054,120]
[381098084,1756037445445,-480.0,0.00052054,120]
[381098085,1756037445454,-171.39609358,0.00052054,120]
[381098086,1756037445464,-882.02,0.00052054,120]
[381098087,1756037445474,-730.83,0.00052054,120]
[381098088,1756037445483,-480.0,0.00052054,120]
[381098089,1756037445493,-480.0,0.00052054,120]
[381098090,1756037445502,-151.0,0.00052054,120]
[381098091,1756037445512,-151.000001,0.00052054,120]
[381098093,1756037445522,-151.0,0.00052054,120]
[381098094,1756037445532,-480.0,0.00052054,120]
[381098095,1756037445542,-517.34,0.00052054,120]
[381098096,1756037445552,-480.0,0.00052054,120]
[381098097,1756037445562,-480.0,0.00052054,120]
[381098098,1756037445572,-480.0,0.00052054,120]
[381098099,1756037445581,-480.0,0.00052054,120]
[381098100,1756037445591,-480.0,0.00052054,120]
[381098101,1756037445600,-480.0,0.00052054,120]
[381098103,1756037445610,-675.08,0.00052054,120]
[381098104,1756037445619,-1169.13,0.00052054,120]
[381098105,1756037445629,-863.7,0.00052054,120]
[381098106,1756037445638,-151.0,0.00052054,120]
[381098107,1756037445647,-480.0,0.00052054,120]
[381098108,1756037445657,-151.0,0.00052054,120]
[381098109,1756037445667,-480.0,0.00052054,120]
[381098110,1756037445676,-480.0,0.00052054,14]
[381098111,1756037445685,-1046.94,0.00052054,120]
[381098112,1756037445694,-200.0,0.00052054,2]
[381098113,1756037445703,-2113.26,0.00052054,120]
[381098114,1756037445712,-151.0,0.00052054,120]
[381098115,1756037445722,-480.0,0.00052054,120]
[381098116,1756037445731,-151.0,0.00052054,120]
[381098117,1756037445743,-480.0,0.00052054,120]
[381098118,1756037445753,-480.0,0.00052054,120]
[381098119,1756037445763,-480.0,0.00052054,120]
[381098120,1756037445846,-480.0,0.00052054,120]
[381098121,1756037445855,-480.0,0.00052054,120]
[381098122,1756037445865,-480.0,0.00052054,120]
[381098123,1756037445873,-480.0,0.00052054,120]
[381098124,1756037445883,-694.7,0.00052054,120]
[381098125,1756037445892,-480.0,0.00052054,120]
[381098126,1756037445901,-737.77,0.00052054,120]
[381098127,1756037445910,-1155.36,0.00052054,120]
[381098128,1756037445919,-3737.06,0.00052054,120]
[381098129,1756037445929,-747.68,0.00052054,120]
[381098130,1756037445939,-606.89,0.00052054,120]
[381098131,1756037445948,-480.0,0.00052054,120]
[381098133,1756037445957,-480.0,0.00052054,120]
[381098134,1756037445966,-665.64,0.00052054,120]
[381098135,1756037445976,-151.0,0.00052054,120]
[381098136,1756037445986,-1000.0,0.00052054,120]
[381098137,1756037445995,-151.0,0.00052054,120]
[381098138,1756037446004,-151.0,0.00052054,120]
[381098139,1756037446013,-151.0,0.00052054,120]
[381098140,1756037446023,-151.0,0.00052054,120]
[381098141,1756037446032,-151.0,0.00052054,120]
[381098142,1756037446043,-151.0,0.00052054,120]
[381098143,1756037446056,-152.473456,0.00052054,120]
[381098144,1756037446065,-480.0,0.00052054,120]
[381098145,1756037446075,-480.0,0.00052054,120]
[381098146,1756037446084,-480.0,0.00052054,120]
[381098147,1756037446094,-480.0,0.00052054,120]
[381098148,1756037446103,-480.0,0.00052054,120]
[381098150,1756037446112,-513.28662208,0.00052054,120]
[381098151,1756037446122,-480.0,0.00052054,120]
[381098152,1756037446135,-1082.54,0.00052054,120]
[381098153,1756037446144,-480.0,0.00052054,120]
[381098154,1756037446155,-480.0,0.00052054,120]
[381098155,1756037446164,-480.0,0.00052054,120]
[381098156,1756037446174,-480.0,0.00052054,120]
[381098157,1756037446183,-480.0,0.00052054,120]
[381098158,1756037446193,-480.0,0.00052054,120]
[381098159,1756037446202,-480.0,0.00052054,120]
[381098160,1756037446211,-2125.57,0.00052054,120]
[381098161,1756037446221,-1061.08,0.00052054,120]
[381098162,1756037446231,-480.0,0.00052054,120]
[381098163,1756037446242,-480.0,0.00052054,120]
[381098164,1756037446251,-480.0,0.00052054,120]
[381098165,1756037446260,-600.94,0.00052054,120]
[381098166,1756037446270,-358.71649746,0.00052054,120]
[381098167,1756037446279,-1366.3,0.00052054,120]
[381098168,1756037446288,-1704.76,0.00052054,120]
[381098169,1756037446298,-480.0,0.00052054,120]
[381098170,1756037446307,-480.0,0.00052054,120]
[381098171,1756037446316,-525.15,0.00052054,120]
[381098172,1756037446326,-151.0,0.00052054,120]
[381098173,1756037446335,-480.0,0.00052054,120]
[381098174,1756037446345,-151.0,0.00052054,120]
[381098175,1756037446354,-488.19,0.00052054,120]
[381098176,1756037446363,-151.0,0.00052054,120]
[381098177,1756037446373,-480.0,0.00052054,120]
[381098178,1756037446382,-480.0,0.00052054,120]
[381098179,1756037446391,-511.43,0.00052054,120]
[381098180,1756037446400,-480.0,0.00052054,120]
[381098181,1756037446411,-2227.4,0.00052054,120]
[381098182,1756037446420,-496.22,0.00052054,120]
[381098183,1756037446430,-480.0,0.00052054,120]
[381098184,1756037446442,-480.0,0.00052054,120]
[381098185,1756037446454,-480.0,0.00052054,120]
[381098186,1756037446464,-480.0,0.00052054,120]
[381098187,1756037446473,-731.93,0.00052054,120]
[381098188,1756037446484,-480.0,0.00052054,120]
[381098189,1756037446493,-480.0,0.00052054,120]
[381098190,1756037446502,-480.0,0.00052054,120]
[381098191,1756037446512,-480.0,0.00052054,120]
[381098192,1756037446521,-480.0,0.00052054,120]
[381098193,1756037446531,-480.0,0.00052054,120]
[381098194,1756037446540,-159.626916,0.00052054,2]
[381098195,1756037446550,-480.0,0.00052054,120]
[381098196,1756037446560,-480.0,0.00052054,120]
[381098197,1756037446569,-480.0,0.00052054,120]
[381098198,1756037446578,-406.40814552,0.00052054,120]
[381098199,1756037446587,-480.0,0.00052054,120]
[381098200,1756037446597,-1165.38,0.00052054,120]
[381098201,1756037446606,-151.0,0.00052054,120]
[381098202,1756037446615,-151.0,0.00052054,120]
[381098203,1756037446625,-1011.02,0.00052054,120]
[381098204,1756037446637,-1197.3,0.00052054,120]
[381098205,1756037446646,-480.0,0.00052054,120]
[381098206,1756037446656,-151.0,0.00052054,120]
[381098207,1756037446665,-151.0,0.00052054,120]
[381098208,1756037446675,-480.0,0.00052054,120]
[381098209,1756037446684,-151.0,0.00052054,120]
[381098210,1756037446693,-151.0,0.00052054,120]
[381098211,1756037446702,-480.0,0.00052054,120]
[381098212,1756037446711,-151.0,0.00052054,120]
[381098213,1756037446720,-1649.64,0.00052054,120]
[381098214,1756037446729,-480.0,0.00052054,120]
[381098215,1756037446739,-151.0,0.00052054,120]
[381098216,1756037446748,-151.0,0.00052054,120]
[381098217,1756037446757,-151.0,0.00052054,120]
[381098218,1756037446766,-160.168768,0.00052054,120]
[381098219,1756037446775,-480.0,0.00052054,120]
[381098220,1756037446784,-480.0,0.00052054,120]
[381098221,1756037446794,-480.0,0.00052054,120]
[381098222,1756037446803,-480.0,0.00052054,120]
[381098223,1756037446812,-480.0,0.00052054,120]
[381098224,1756037446821,-1132.68,0.00052054,120]
[381098225,1756037446831,-1243.89,0.00052054,120]
[381098226,1756037446840,-480.0,0.00052054,120]
[381098227,1756037446850,-480.0,0.00052054,120]
[381098228,1756037446860,-1521.19,0.00052054,120]
[381098229,1756037446869,-480.0,0.00052054,120]
[381098230,1756037446878,-480.0,0.00052054,120]
[381098231,1756037446888,-1122.99,0.00052054,120]
[381098232,1756037446897,-1140.29,0.00052054,120]
[381098233,1756037446907,-480.0,0.00052054,120]
[381098234,1756037446916,-480.0,0.00052054,30]
[381098235,1756037446925,-480.0,0.00052054,120]
[381098236,1756037446934,-480.0,0.00052054,120]
[381098237,1756037446944,-528.50808425,0.00052054,120]
[381098238,1756037446954,-480.0,0.00052054,7]
[381098239,1756037446964,-2922.94,0.00052054,120]
[381098240,1756037446973,-480.0,0.00052054,120]
[381098241,1756037446983,-1514.63,0.00052054,120]
[381098242,1756037446992,-223.62820036,0.00052054,120]
[381098243,1756037447002,-151.0,0.00052054,120]
[381098244,1756037447011,-151.0,0.00052054,120]
[381098245,1756037447021,-151.0,0.00052054,120]
[381098246,1756037447031,-151.0,0.00052054,120]
[381098247,1756037447042,-480.0,0.00052054,120]
[381098248,1756037447056,-151.0,0.00052054,120]
[381098249,1756037447067,-151.0,0.00052054,120]
[381098250,1756037447077,-500.0,0.00052054,30]
[381098251,1756037447086,-480.0,0.00052054,120]
[381098252,1756037447097,-151.0,0.00052054,120]
[381098253,1756037447107,-151.0,0.00052054,120]
[381098254,1756037447116,-5398.14,0.00052054,120]
[381098255,1756037447126,-151.0,0.00052054,120]
[381098256,1756037447137,-152.576873,0.00052054,120]
[381098257,1756037447146,-151.0,0.00052054,120]
[381098258,1756037447156,-151.0,0.00052054,120]
[381098259,1756037447165,-151.0,0.00052054,120]
[381098260,1756037447175,-1146.14,0.00052054,120]
[381098261,1756037447185,-151.0,0.00052054,120]
[381098262,1756037447195,-480.0,0.00052054,120]
[381098263,1756037447204,-480.0,0.00052054,120]
[381098264,1756037447215,-151.0,0.00052054,120]
[381098265,1756037447225,-254.479868,0.00052054,120]
[381098266,1756037447235,-572.71,0.00052054,120]
[381098267,1756037447246,-151.0,0.00052054,120]
[381098268,1756037447261,-151.0,0.00052054,120]
[381098269,1756037447274,-480.0,0.00052054,120]
[381098270,1756037447284,-151.0,0.00052054,120]
[381098271,1756037447294,-151.0,0.00052054,120]
[381098272,1756037447304,-480.0,0.00052054,120]
[381098273,1756037447314,-480.0,0.00052054,120]
[381098274,1756037447323,-480.0,0.00052054,120]
[381098275,1756037447333,-1313.47,0.00052054,120]
[381098276,1756037447343,-480.0,0.00052054,120]
[381098277,1756037447353,-480.0,0.00052054,120]
[381098278,1756037447363,-708.73,0.00052054,120]
[381098279,1756037447373,-480.0,0.00052054,120]
[381098280,1756037447383,-1200.71,0.00052054,120]
[381098281,1756037447392,-480.0,0.00052054,120]
[381098282,1756037447402,-480.0,0.00052054,120]
[381098283,1756037447412,-480.0,0.00052054,120]
[381098284,1756037447422,-536.85,0.00052054,120]
[381098285,1756037447431,-480.0,0.00052054,120]
[381098286,1756037447446,-480.0,0.00052054,120]
[381098287,1756037447456,-702.4,0.00052054,120]
[381098288,1756037447466,-480.0,0.00052054,120]
[381098289,1756037447476,-480.0,0.00052054,120]
[381098290,1756037447486,-480.0,0.00052054,120]
[381098291,1756037447496,-480.0,0.00052054,120]
[381098292,1756037447506,-480.0,0.00052054,120]
[381098293,1756037447516,-952.46,0.00052054,120]
[381098294,1756037447530,-480.0,0.00052054,120]
[381098295,1756037447540,-1189.62,0.00052054,120]
[381098296,1756037447550,-527.49,0.00052054,120]
[381098297,1756037447560,-480.0,0.00052054,120]
[381098298,1756037447569,-480.0,0.00052054,120]
[381098299,1756037447579,-480.0,0.00052054,120]
[381098300,1756037447588,-892.97,0.00052054,120]
[381098301,1756037447598,-480.0,0.00052054,120]
[381098302,1756037447608,-480.0,0.00052054,120]
[381098303,1756037447618,-480.0,0.00052054,120]
[381098304,1756037447628,-480.0,0.00052054,120]
[381098305,1756037447638,-480.0,0.00052054,120]
[381098306,1756037447647,-480.0,0.00052054,120]
[381098307,1756037447656,-849.19,0.00052054,120]
[381098308,1756037447666,-401.05432416,0.00052054,120]
[381098309,1756037447676,-480.0,0.00052054,120]
[381098310,1756037447686,-480.0,0.00052054,120]
[381098311,1756037447695,-480.0,0.00052054,120]
[381098312,1756037447705,-1703.71,0.00052054,120]
[381098313,1756037447714,-602.88,0.00052054,120]
[381098314,1756037447724,-480.0,0.00052054,120]
[381098315,1756037447734,-836.64,0.00052054,120]
[381098316,1756037447744,-151.0,0.00052054,120]
[381098317,1756037447754,-151.0,0.00052054,120]
[381098318,1756037447763,-151.0,0.00052054,120]
[381098319,1756037447773,-151.0,0.00052054,120]
[381098320,1756037447783,-1282.36,0.00052054,120]
[381098321,1756037447793,-856.85,0.00052054,120]
[381098322,1756037447802,-1003.8,0.00052054,120]
[381098323,1756037447811,-480.0,0.00052054,120]
[381098324,1756037447820,-151.0,0.00052054,120]
[381098325,1756037447830,-151.0,0.00052054,120]
[381098326,1756037447840,-151.0,0.00052054,120]
[381098327,1756037447850,-241.66252,0.00052054,120]
[381098328,1756037447860,-480.0,0.00052054,120]
[381098329,1756037447869,-480.0,0.00052054,120]
[381098330,1756037447880,-151.0,0.00052054,120]
[381098331,1756037447891,-151.0,0.00052054,120]
[381098332,1756037447900,-151.0,0.00052054,120]
[381098333,1756037447910,-534.00201677,0.00052054,120]
[381098334,1756037447919,-480.0,0.00052054,120]
[381098335,1756037447929,-194.94553,0.00052054,120]
[381098336,1756037447939,-480.0,0.00052054,30]
[381098337,1756037447948,-151.69218898,0.00052054,120]
[381098338,1756037447959,-480.0,0.00052054,120]
[381098339,1756037447969,-496.47,0.00052054,120]
[381098340,1756037447978,-480.0,0.00052054,120]
[381098341,1756037447988,-480.0,0.00052054,120]
[381098342,1756037447997,-480.0,0.00052054,120]
[381098343,1756037448007,-480.0,0.00052054,120]
[381098344,1756037448017,-480.0,0.00052054,120]
[381098345,1756037448026,-480.0,0.00052054,120]
[381098346,1756037448036,-480.0,0.00052054,120]
[381098347,1756037448049,-480.0,0.00052054,120]
[381098348,1756037448065,-480.0,0.00052054,120]
[381098349,1756037448076,-480.0,0.00052054,120]
[381098350,1756037448086,-480.0,0.00052054,120]
[381098351,1756037448096,-337.13932336,0.00052054,120]
[381098352,1756037448106,-1421.03,0.00052054,120]
[381098353,1756037448116,-2786.12,0.00052054,120]
[381098354,1756037448126,-2249.19,0.00052054,120]
[381098355,1756037448135,-493.19,0.00052054,120]
[381098356,1756037448146,-224.69783673,0.00052054,120]
[381098357,1756037448156,-480.0,0.00052054,120]
[381098358,1756037448167,-480.0,0.00052054,120]
[381098359,1756037448176,-249.167485,0.00052054,120]
[381098360,1756037448186,-441.93999117,0.00052054,120]
[381098361,1756037448198,-480.0,0.00052054,120]
[381098362,1756037448209,-480.0,0.00052054,120]
[381098363,1756037448220,-480.0,0.00052054,120]
[381098364,1756037448230,-1002.54,0.00052054,120]
[381098365,1756037448240,-151.0,0.00052054,120]
[381098366,1756037448250,-480.0,0.00052054,120]
[381098367,1756037448260,-480.0,0.00052054,120]
[381098368,1756037448270,-461.07348575,0.00052054,120]
[381098369,1756037448279,-636.96,0.00052054,120]
[381098370,1756037448289,-151.0,0.00052054,120]
[381098371,1756037448299,-480.0,0.00052054,120]
[381098372,1756037448309,-528.09,0.00052054,120]
[381098373,1756037448319,-1987.96,0.00052054,120]
[381098374,1756037448329,-480.0,0.00052054,120]
[381098375,1756037448340,-1987.96,0.00052054,120]
[381098376,1756037448350,-151.0,0.00052054,120]
[381098377,1756037448361,-1987.96,0.00052054,120]
[381098378,1756037448371,-151.0,0.00052054,120]
[381098379,1756037448383,-1987.96,0.00052054,120]
[381098380,1756037448395,-151.0,0.00052054,120]
[381098381,1756037448406,-1987.96,0.00052054,120]
[381098382,1756037448417,-1987.96,0.00052054,120]
[381098383,1756037448427,-151.0,0.00052054,120]
[381098384,1756037448437,-1987.96,0.00052054,120]
[381098385,1756037448448,-1249.27,0.00052054,120]
[381098386,1756037448458,-158.59768497,0.00052054,120]
[381098387,1756037448468,-1926.58,0.00052054,120]
[381098388,1756037448478,-480.0,0.00052054,120]
[381098389,1756037448488,-774.66,0.00052054,120]
[381098390,1756037448498,-1328.01,0.00052054,120]
[381098391,1756037448509,-984.51,0.00052054,120]
[381098392,1756037448519,-480.0,0.00052054,120]
[381098393,1756037448529,-1987.96,0.00052054,120]
[381098394,1756037448540,-1987.96,0.00052054,120]
[381098395,1756037448552,-1987.96,0.00052054,120]
[381098396,1756037448564,-1987.96,0.00052054,120]
[381098397,1756037448574,-1987.96,0.00052054,120]
[381098398,1756037448585,-1987.96,0.00052054,120]
[381098399,1756037448596,-480.0,0.00052054,120]
[381098400,1756037448606,-1987.96,0.00052054,120]
[381098401,1756037448617,-1987.96,0.00052054,120]
[381098402,1756037448628,-1987.96,0.00052054,120]
[381098403,1756037448639,-1987.96,0.00052054,120]
[381098404,1756037448650,-1987.96,0.00052054,120]
[381098405,1756037448660,-1987.96,0.00052054,120]
[381098406,1756037448671,-1987.96,0.00052054,120]
[381098407,1756037448682,-1358.18,0.00052054,120]
[381098408,1756037448692,-1987.96,0.00052054,120]
[381098409,1756037448702,-2308.51,0.00052054,120]
[381098410,1756037448713,-1987.96,0.00052054,120]
[381098411,1756037448723,-1987.96,0.00052054,120]
[381098412,1756037448734,-1987.96556264,0.00052054,120]
[381098413,1756037448744,-480.0,0.00052054,120]
[381098414,1756037448754,-695.61,0.00052054,120]
[381098415,1756037448765,-151.0,0.00052054,120]
[381098416,1756037448775,-551.0,0.00052054,120]
[381098417,1756037448785,-151.0,0.00052054,120]
[381098418,1756037448795,-151.0,0.00052054,120]
[381098419,1756037448806,-4878.58,0.00052054,120]
[381098420,1756037448816,-151.0,0.00052054,120]
[381098421,1756037448827,-480.0,0.00052054,120]
[381098422,1756037448837,-151.0,0.00052054,120]
[381098423,1756037448847,-151.0,0.00052054,120]
[381098424,1756037448857,-151.0,0.00052054,120]
[381098425,1756037448868,-151.0,0.00052054,120]
[381098426,1756037448879,-480.0,0.00052054,120]
[381098427,1756037448889,-480.0,0.00052054,120]
[381098428,1756037448899,-480.0,0.00052054,120]
[381098429,1756037448910,-480.0,0.00052054,120]
[381098430,1756037448920,-225.56944596,0.00052054,120]
[381098431,1756037448930,-480.0,0.00052054,120]
[381098432,1756037448941,-954.55,0.00052054,120]
[381098433,1756037448951,-480.0,0.00052054,120]
[381098434,1756037448962,-480.0,0.00052054,120]
[381098435,1756037448972,-480.0,0.00052054,120]
[381098436,1756037448982,-3750.96,0.00052054,120]
[381098437,1756037448992,-480.0,0.00052054,120]
[381098438,1756037449002,-480.0,0.00052054,120]
[381098439,1756037449013,-480.0,0.00052054,120]
[381098440,1756037449022,-480.0,0.00052054,120]
[381098441,1756037449033,-1172.51,0.00052054,120]
[381098442,1756037449046,-480.0,0.00052054,120]
[381098443,1756037449059,-1801.13,0.00052054,120]
[381098444,1756037449069,-5573.86,0.00052054,120]
[381098445,1756037449079,-1007.92,0.00052054,120]
[381098446,1756037449090,-480.0,0.00052054,120]
[381098447,1756037449100,-480.0,0.00052054,120]
[381098448,1756037449110,-532.85,0.00052054,120]
[381098449,1756037449120,-480.0,0.00052054,120]
[381098450,1756037449131,-480.0,0.00052054,120]
[381098451,1756037449141,-480.0,0.00052054,120]
[381098452,1756037449152,-3052.06,0.00052054,120]
[381098453,1756037449162,-480.0,0.00052054,120]
[381098454,1756037449172,-1994.21,0.00052054,120]
[381098455,1756037449182,-480.0,0.00052054,120]
[381098456,1756037449192,-480.0,0.00052054,120]
[381098457,1756037449203,-2023.72,0.00052054,120]
[381098458,1756037449213,-825.55,0.00052054,120]
[381098459,1756037449223,-1639.09,0.00052054,120]
[381098460,1756037449234,-480.0,0.00052054,120]
[381098461,1756037449244,-480.0,0.00052054,120]
[381098462,1756037449254,-480.0,0.00052054,120]
[381098463,1756037449264,-480.0,0.00052054,120]
[381098464,1756037449274,-480.0,0.00052054,7]
[381098465,1756037449284,-480.0,0.00052054,120]
[381098466,1756037449294,-480.0,0.00052054,120]
[381098467,1756037449304,-441.6815004,0.00052054,120]
[381098468,1756037449314,-151.0,0.00052054,120]
[381098469,1756037449324,-151.0,0.00052054,120]
[381098470,1756037449334,-4674.72,0.00052054,120]
[381098471,1756037449344,-151.0,0.00052054,120]
[381098472,1756037449354,-151.0,0.00052054,120]
[381098473,1756037449363,-480.0,0.00052054,120]
[381098474,1756037449374,-151.0,0.00052054,120]
[381098475,1756037449384,-1917.55,0.00052054,120]
[381098476,1756037449394,-151.0,0.00052054,120]
[381098477,1756037449404,-825.96,0.00052054,120]
[381098478,1756037449414,-480.0,0.00052054,120]
[381098479,1756037449424,-480.0,0.00052054,120]
[381098480,1756037449434,-769.83,0.00052054,120]
[381098481,1756037449444,-480.0,0.00052054,120]
[381098482,1756037449454,-616.67,0.00052054,120]
[381098483,1756037449464,-480.0,0.00052054,120]
[381098484,1756037449653,-558.39800339,0.00052054,120]
[381098485,1756037449663,-241.3568586,0.00052054,120]
[381098486,1756037449673,-480.0,0.00052054,120]
[381098487,1756037449682,-480.0,0.00052054,120]